lending/lending_fUSD_20250318
["ID","MTS","AMOUNT","RATE_DAILY","PERIOD"]
[356364397,1742339499831,-510.27997086,0.00036712,12]
[356364398,1742339499840,-500.0,0.00036712,12]
[356364399,1742339499849,-500.0,0.00036712,12]
[356364400,1742339499859,-500.0,0.00036712,12]
[356364401,1742339499870,-500.0,0.00036712,12]
[356364402,1742339499879,-531.32,0.00036712,12]
[356364403,1742339499890,-500.0,0.00036712,12]
[356364404,1742339499899,-500.0,0.00036712,12]
[356364405,1742339499908,-500.0,0.00036712,2]
[356364406,1742339499918,-500.0,0.00036712,12]
[356364407,1742339499928,-601.48,0.00036712,12]
[356364408,1742339499938,-567.63,0.00036712,12]
[356364409,1742339499947,-500.0,0.00036712,12]
[356364410,1742339499956,-532.61211693,0.00036712,12]
[356364411,1742339499965,-500.0,0.00036712,12]
[356364412,1742339499974,-963.46,0.00036712,12]
[356364413,1742339499983,-500.0,0.00036712,12]
[356364414,1742339499993,-500.0,0.00036712,12]
[356364415,1742339500002,-500.0,0.00036712,12]
[356364416,1742339500011,-815.63,0.00036712,12]
[356364417,1742339500021,-500.0,0.00036712,12]
[356364418,1742339500030,-500.0,0.00036712,12]
[356364419,1742339500040,-571.70094677,0.00036712,12]
[356364420,1742339500049,-500.0,0.00036712,12]
[356364421,1742339500058,-500.0,0.00036712,12]
[356364422,1742339500067,-500.0,0.00036712,12]
[356364423,1742339500077,-500.0,0.00036712,12]
[356364424,1742339500086,-500.0,0.00036712,12]
[356364425,1742339500096,-500.0,0.00036712,12]
[356364426,1742339500106,-500.0,0.00036712,12]
[356364427,1742339500115,-500.0,0.00036712,12]
[356364428,1742339500124,-500.0,0.00036712,12]
[356364429,1742339500134,-500.37,0.00036712,12]
[356364430,1742339500144,-546.76,0.00036712,12]
[356364431,1742339500153,-500.0,0.00036712,12]
[356364432,1742339500162,-522.43032866,0.00036712,12]
[356364433,1742339500171,-500.0,0.00036712,12]
[356364434,1742339500180,-500.0,0.00036712,12]
[356364435,1742339500189,-500.0,0.00036712,12]
[356364436,1742339500199,-500.0,0.00036712,12]
[356364437,1742339500208,-287.98712244,0.00036712,12]
[356364438,1742339500217,-500.0,0.00036712,12]
[356364439,1742339500227,-503.20806844,0.00036712,12]
[356364440,1742339500236,-500.0,0.00036712,12]
[356364441,1742339500245,-500.0,0.00036712,12]
[356364442,1742339500254,-500.0,0.00036712,12]
[356364443,1742339500263,-567.88318191,0.00036712,12]
[356364444,1742339500272,-500.0,0.00036712,12]
[356364445,1742339500281,-599.5,0.00036712,12]
[356364446,1742339500291,-500.0,0.00036712,12]
[356364447,1742339500300,-729.58,0.00036712,12]
[356364448,1742339500309,-500.0,0.00036712,12]
[356364449,1742339500318,-922.39,0.00036712,12]
[356364450,1742339500327,-500.0,0.00036712,12]
[356364451,1742339500336,-500.0,0.00036712,12]
[356364452,1742339500346,-1163.14,0.00036712,12]
[356364453,1742339500356,-875.92,0.00036712,30]
[356364454,1742339500365,-500.0,0.00036712,12]
[356364455,1742339500375,-500.0,0.00036712,12]
[356364456,1742339500384,-750.87,0.00036712,12]
[356364457,1742339500393,-500.0,0.00036712,12]
[356364458,1742339500403,-500.0,0.00036712,12]
[356364459,1742339500412,-1410.05,0.00036712,12]
[356364460,1742339500422,-510.0,0.00036712,12]
[356364461,1742339500431,-541.9,0.00036712,12]
[356364462,1742339500440,-500.0,0.00036712,12]
[356364463,1742339500449,-2100.21,0.00036712,12]
[356364464,1742339500459,-500.0,0.00036712,12]
[356364465,1742339500468,-819.72,0.00036712,12]
[356364466,1742339500477,-179.37954869,0.00036712,12]
[356364467,1742339500486,-500.0,0.00036712,12]
[356364468,1742339500495,-500.0,0.00036712,12]
[356364469,1742339500505,-868.85,0.00036712,12]
[356364470,1742339500515,-500.0,0.00036712,12]
[356364471,1742339500524,-500.0,0.00036712,12]
[356364472,1742339500533,-500.0,0.00036712,12]
[356364473,1742339500542,-500.0,0.00036712,12]
[356364474,1742339500551,-832.99,0.00036712,12]
[356364475,1742339500560,-500.0,0.00036712,12]
[356364476,1742339500570,-1565.380344,0.00036712,12]
[356364477,1742339500579,-500.0,0.00036712,12]
[356364478,1742339500589,-500.0,0.00036712,12]
[356364479,1742339500599,-1487.67,0.00036712,12]
[356364480,1742339500609,-151.731954,0.00036712,12]
[356364481,1742339500618,-728.98,0.00036712,12]
[356364482,1742339500628,-500.0,0.00036712,12]
[356364483,1742339500637,-156.823057,0.00036712,12]
[356364484,1742339500646,-500.0,0.00036712,12]
[356364485,1742339500656,-915.45,0.00036712,12]
[356364486,1742339500665,-500.0,0.00036712,12]
[356364487,1742339500675,-500.0,0.00036712,12]
[356364488,1742339500685,-523.14,0.00036712,12]
[356364489,1742339500694,-500.0,0.00036712,12]
[356364490,1742339500704,-531.95386155,0.00036712,12]
[356364491,1742339500714,-500.0,0.00036712,12]
[356364492,1742339500724,-500.0,0.00036712,12]
[356364493,1742339500735,-500.0,0.00036712,12]
[356364494,1742339500745,-508.73495655,0.00036712,12]
[356364495,1742339500755,-500.0,0.00036712,12]
[356364496,1742339500766,-415.53198,0.00036712,12]
[356364497,1742339500776,-500.0,0.00036712,12]
[356364498,1742339500786,-500.0,0.00036712,12]
[356364499,1742339500797,-571.54,0.00036712,12]
[356364500,1742339500806,-511.66575565,0.00036712,12]
[356364501,1742339500815,-500.0,0.00036712,12]
[356364502,1742339500825,-500.0,0.00036712,12]
[356364503,1742339500837,-516.87090014,0.00036712,12]
[356364504,1742339500846,-500.0,0.00036712,12]
[356364505,1742339500856,-547.0,0.00036712,12]
[356364506,1742339500867,-500.0,0.00036712,12]
[356364507,1742339500877,-175.9640358,0.00036712,12]
[356364508,1742339500887,-1579.021524,0.00036712,12]
[356364509,1742339500898,-500.0,0.00036712,12]
[356364510,1742339500908,-500.0,0.00036712,12]
[356364511,1742339500917,-500.0,0.00036712,12]
[356364512,1742339500927,-540.14,0.00036712,12]
[356364513,1742339500936,-226.75179933,0.00036712,12]
[356364514,1742339500945,-500.0,0.00036712,12]
[356364515,1742339500958,-500.0,0.00036712,12]
[356364516,1742339500967,-500.0,0.00036712,12]
[356364517,1742339500977,-507.06,0.00036712,12]
[356364518,1742339500986,-500.0,0.00036712,12]
[356364519,1742339500996,-500.0,0.00036712,12]
[356364520,1742339501006,-500.0,0.00036712,12]
[356364521,1742339501015,-163.80564809,0.00036712,12]
[356364522,1742339501024,-500.0,0.00036712,12]
[356364523,1742339501034,-1406.95,0.00036712,12]
[356364524,1742339501043,-507.14914408,0.00036712,12]
[356364525,1742339501052,-1265.92,0.00036712,12]
[356364526,1742339501062,-583.92,0.00036712,12]
[356364527,1742339501072,-586.48234879,0.00036712,12]
[356364528,1742339501081,-500.0,0.00036712,12]
[356364529,1742339501091,-819.59,0.00036712,12]
[356364530,1742339501100,-500.0,0.00036712,12]
[356364531,1742339501110,-512.62494237,0.00036712,12]
[356364532,1742339501119,-1112.86,0.00036712,12]
[356364533,1742339501128,-500.0,0.00036712,12]
[356364534,1742339501138,-500.0,0.00036712,12]
[356364535,1742339501147,-500.0,0.00036712,12]
[356364536,1742339501156,-536.76810953,0.00036712,12]
[356364537,1742339501165,-500.0,0.00036712,12]
[356364538,1742339501174,-500.0,0.00036712,12]
[356364539,1742339501184,-500.0,0.00036712,12]
[356364540,1742339501193,-849.05,0.00036712,12]
[356364541,1742339501202,-524.76553925,0.00036712,12]
[356364542,1742339501212,-610.12,0.00036712,12]
[356364543,1742339501222,-500.0,0.00036712,12]
[356364544,1742339501232,-500.0,0.00036712,12]
[356364545,1742339501241,-500.0,0.00036712,12]
[356364546,1742339501251,-966.8,0.00036712,12]
[356364547,1742339501260,-500.0,0.00036712,12]
[356364548,1742339501269,-562.17,0.00036712,12]
[356364549,1742339501279,-500.0,0.00036712,12]
[356364550,1742339501288,-500.0,0.00036712,12]
[356364551,1742339501297,-589.33138583,0.00036712,12]
[356364552,1742339501307,-500.0,0.00036712,12]
[356364553,1742339501317,-500.0,0.00036712,12]
[356364554,1742339501327,-500.0,0.00036712,12]
[356364555,1742339501336,-500.0,0.00036712,12]
[356364556,1742339501345,-500.0,0.00036712,12]
[356364557,1742339501354,-500.0,0.00036712,12]
[356364558,1742339501363,-500.0,0.00036712,12]
[356364559,1742339501372,-521.10153178,0.00036712,12]
[356364560,1742339501382,-500.0,0.00036712,12]
[356364561,1742339501392,-500.0,0.00036712,12]
[356364562,1742339501402,-500.0,0.00036712,12]
[356364563,1742339501411,-565.83,0.00036712,12]
[356364564,1742339501420,-500.0,0.00036712,12]
[356364565,1742339501430,-897.12,0.00036712,12]
[356364566,1742339501440,-527.64590957,0.00036712,12]
[356364567,1742339501449,-500.0,0.00036712,12]
[356364568,1742339501459,-506.55295586,0.00036712,12]
[356364569,1742339501468,-500.0,0.00036712,12]
[356364570,1742339501478,-500.0,0.00036712,12]
[356364571,1742339501487,-252.4839309,0.00036712,12]
[356364572,1742339501497,-500.0,0.00036712,12]
[356364573,1742339501507,-500.0,0.00036712,12]
[356364574,1742339501516,-500.0,0.00036712,12]
[356364575,1742339501526,-519.18799422,0.00036712,12]
[356364576,1742339501535,-500.0,0.00036712,12]
[356364577,1742339501545,-500.0,0.00036712,12]
[356364578,1742339501554,-638.30826216,0.00036712,12]
[356364579,1742339501563,-588.08,0.00036712,12]
[356364580,1742339501572,-299.50959479,0.00036712,12]
[356364581,1742339501582,-500.0,0.00036712,12]
[356364582,1742339501591,-539.17,0.00036712,12]
[356364583,1742339501600,-500.0,0.00036712,12]
[356364584,1742339501610,-500.0,0.00036712,12]
[356364585,1742339501619,-500.0,0.00036712,12]
[356364586,1742339501628,-563.3986361,0.00036712,12]
[356364587,1742339501639,-500.0,0.00036712,12]
[356364588,1742339501648,-500.0,0.00036712,12]
[356364589,1742339501657,-500.0,0.00036712,12]
[356364590,1742339501667,-2686.86,0.00036712,12]
[356364591,1742339501677,-956.37,0.00036712,12]
[356364592,1742339501686,-500.0,0.00036712,12]
[356364593,1742339501695,-1521.69,0.00036712,7]
[356364594,1742339501704,-500.0,0.00036712,12]
[356364595,1742339501714,-914.58,0.00036712,12]
[356364596,1742339501723,-510.26737972,0.00036712,12]
[356364597,1742339501733,-500.0,0.00036712,12]
[356364598,1742339501742,-500.0,0.00036712,12]
[356364599,1742339501752,-500.0,0.00036712,12]
[356364600,1742339501761,-537.65,0.00036712,12]
[356364601,1742339501770,-500.0,0.00036712,12]
[356364602,1742339501781,-497.04386652,0.00036712,12]
[356364603,1742339501794,-1313.1,0.00036712,12]
[356364604,1742339501804,-511.08693477,0.00036712,12]
[356364605,1742339501814,-500.0,0.00036712,12]
[356364606,1742339501825,-500.0,0.00036712,12]
[356364607,1742339501835,-500.0,0.00036712,12]
[356364608,1742339501844,-500.0,0.00036712,12]
[356364609,1742339501855,-894.12,0.00036712,12]
[356364610,1742339501869,-500.0,0.00036712,12]
[356364611,1742339501879,-500.0,0.00036712,12]
[356364612,1742339501889,-500.0,0.00036712,12]
[356364613,1742339501899,-500.0,0.00036712,12]
[356364614,1742339501908,-481.94442503,0.00036712,12]
[356364615,1742339501917,-500.0,0.00036712,12]
[356364616,1742339501926,-500.0,0.00036712,12]
[356364617,1742339501934,-513.86695075,0.00036712,12]
[356364618,1742339501944,-500.0,0.00036712,12]
[356364619,1742339501954,-523.64,0.00036712,12]
[356364620,1742339501963,-500.0,0.00036712,12]
[356364621,1742339501974,-500.0,0.00036712,12]
[356364622,1742339501983,-500.0,0.00036712,12]
[356364623,1742339501993,-500.0,0.00036712,12]
[356364624,1742339502004,-500.0,0.00036712,12]
[356364625,1742339502014,-500.0,0.00036712,12]
[356364626,1742339502024,-523.91,0.00036712,12]
[356364627,1742339502033,-500.0,0.00036712,12]
[356364628,1742339502043,-592.82783403,0.00036712,12]
[356364629,1742339502052,-538.41977184,0.00036712,12]
[356364630,1742339502061,-845.67,0.00036712,12]
[356364631,1742339502071,-407.67898024,0.00036712,12]
[356364632,1742339502081,-500.0,0.00036712,12]
[356364633,1742339502091,-500.0,0.00036712,12]
[356364634,1742339502100,-421.72120724,0.00036712,12]
[356364635,1742339502109,-500.0,0.00036712,12]
[356364636,1742339502119,-1156.08,0.00036712,12]
[356364637,1742339502129,-508.65098513,0.00036712,12]
[356364638,1742339502140,-500.0,0.00036712,12]
[356364639,1742339502149,-500.0,0.00036712,12]
[356364640,1742339502159,-510.37,0.00036712,12]
[356364641,1742339502169,-500.0,0.00036712,12]
[356364642,1742339502178,-500.0,0.00036712,12]
[356364643,1742339502187,-500.0,0.00036712,12]
[356364644,1742339502196,-500.0,0.00036712,12]
[356364645,1742339502205,-1175.67,0.00036712,12]
[356364646,1742339502215,-500.0,0.00036712,12]
[356364647,1742339502224,-655.83,0.00036712,12]
[356364648,1742339502233,-1360.65,0.00036712,12]
[356364649,1742339502243,-500.0,0.00036712,12]
[356364650,1742339502252,-584.29,0.00036712,12]
[356364651,1742339502261,-675.44,0.00036712,12]
[356364652,1742339502270,-500.0,0.00036712,12]
[356364653,1742339502279,-500.0,0.00036712,12]
[356364654,1742339502288,-535.37,0.00036712,12]
[356364655,1742339502298,-940.73,0.00036712,12]
[356364656,1742339502307,-500.0,0.00036712,12]
[356364657,1742339502316,-500.0,0.00036712,12]
[356364658,1742339502326,-500.0,0.00036712,12]
[356364659,1742339502334,-661.64,0.00036712,12]
[356364660,1742339502343,-628.6,0.00036712,12]
[356364661,1742339502353,-872.38,0.00036712,12]
[356364662,1742339502362,-500.0,0.00036712,12]
[356364663,1742339502371,-671.95,0.00036712,12]
[356364664,1742339502380,-500.0,0.00036712,12]
[356364665,1742339502390,-500.0,0.00036712,12]
[356364666,1742339502400,-589.35,0.00036712,12]
[356364667,1742339502409,-500.0,0.00036712,12]
[356364668,1742339502419,-500.0,0.00036712,12]
[356364669,1742339502428,-500.0,0.00036712,12]
[356364670,1742339502438,-500.0,0.00036712,12]
[356364671,1742339502448,-500.0,0.00036712,12]
[356364672,1742339502458,-2111.58,0.00036712,12]
[356364673,1742339502467,-1118.44,0.00036712,12]
[356364674,1742339502476,-500.0,0.00036712,12]
[356364675,1742339502486,-500.0,0.00036712,12]
[356364676,1742339502495,-952.51,0.00036712,12]
[356364677,1742339502505,-500.0,0.00036712,12]
[356364678,1742339502515,-1141.77,0.00036712,12]
[356364679,1742339502525,-545.70815911,0.00036712,12]
[356364680,1742339502534,-509.9,0.00036712,12]
[356364681,1742339502544,-786.29,0.00036712,12]
[356364682,1742339502553,-500.0,0.00036712,12]
[356364683,1742339502563,-885.74,0.00036712,12]
[356364684,1742339502572,-158.72679804,0.00036712,12]
[356364685,1742339502582,-500.0,0.00036712,12]
[356364686,1742339502592,-500.0,0.00036712,12]
[356364687,1742339502601,-853.02,0.00036712,12]
[356364688,1742339502610,-583.72414083,0.00036712,12]
[356364689,1742339502620,-500.0,0.00036712,12]
[356364690,1742339502630,-500.0,0.00036712,12]
[356364691,1742339502641,-500.0,0.00036712,12]
[356364692,1742339502650,-930.16,0.00036712,12]
[356364693,1742339502660,-500.0,0.00036712,12]
[356364694,1742339502669,-527.86005128,0.00036712,12]
[356364695,1742339502678,-534.99,0.00036712,12]
[356364696,1742339502688,-500.0,0.00036712,12]
[356364697,1742339502698,-554.71,0.00036712,12]
[356364698,1742339502708,-500.0,0.00036712,12]
[356364699,1742339502717,-1096.04,0.00036712,12]
[356364700,1742339502727,-500.0,0.00036712,12]
[356364701,1742339502737,-669.21,0.00036712,12]
[356364702,1742339502746,-2116.57,0.00036712,12]
[356364703,1742339502756,-500.0,0.00036712,12]
[356364704,1742339502765,-500.0,0.00036712,12]
[356364705,1742339502774,-500.0,0.00036712,12]
[356364706,1742339502789,-500.0,0.00036712,12]
[356364707,1742339502798,-500.0,0.00036712,12]
[356364708,1742339502807,-500.0,0.00036712,12]
[356364709,1742339502817,-824.59,0.00036712,12]
[356364710,1742339502827,-1273.18,0.00036712,12]
[356364711,1742339502836,-500.0,0.00036712,12]
[356364712,1742339502846,-500.0,0.00036712,12]
[356364713,1742339502856,-662.07,0.00036712,12]
[356364714,1742339502866,-1001.65,0.00036712,12]
[356364715,1742339502876,-865.19,0.00036712,12]
[356364716,1742339502885,-500.0,0.00036712,12]
[356364717,1742339502895,-500.0,0.00036712,12]
[356364718,1742339502904,-569.57,0.00036712,12]
[356364719,1742339502914,-850.25,0.00036712,12]
[356364720,1742339502923,-2025.31,0.00036712,12]
[356364721,1742339502932,-500.0,0.00036712,12]
[356364722,1742339502942,-500.0,0.00036712,12]
[356364723,1742339502952,-500.0,0.00036712,12]
[356364724,1742339502962,-500.0,0.00036712,12]
[356364725,1742339502972,-500.0,0.00036712,12]
[356364726,1742339502981,-1125.43,0.00036712,12]
[356364727,1742339502991,-1034.97,0.00036712,12]
[356364728,1742339503000,-736.13,0.00036712,12]
[356364729,1742339503009,-500.0,0.00036712,12]
[356364730,1742339503018,-500.0,0.00036712,12]
[356364731,1742339503028,-500.0,0.00036712,12]
[356364732,1742339503038,-500.0,0.00036712,12]
[356364733,1742339503047,-500.0,0.00036712,12]
[356364734,1742339503058,-500.0,0.00036712,12]
[356364735,1742339503067,-500.0,0.00036712,12]
[356364736,1742339503077,-500.0,0.00036712,12]
[356364737,1742339503086,-705.75,0.00036712,12]
[356364738,1742339503095,-500.0,0.00036712,12]
[356364739,1742339503105,-1168.81,0.00036712,12]
[356364740,1742339503114,-500.0,0.00036712,12]
[356364741,1742339503123,-500.0,0.00036712,12]
[356364742,1742339503133,-500.0,0.00036712,12]
[356364743,1742339503143,-909.53,0.00036712,12]
[356364744,1742339503153,-1214.66,0.00036712,12]
[356364745,1742339503162,-750.56,0.00036712,12]
[356364746,1742339503172,-500.0,0.00036712,12]
[356364747,1742339503181,-2000.0,0.00036712,30]
[356364748,1742339503190,-500.0,0.00036712,12]
[356364749,1742339503200,-500.0,0.00036712,12]
[356364750,1742339503210,-999.43,0.00036712,12]
[356364751,1742339503219,-200.0,0.00036712,7]
[356364752,1742339503229,-500.0,0.00036712,12]
[356364753,1742339503239,-500.0,0.00036712,12]
[356364754,1742339503248,-912.96,0.00036712,12]
[356364755,1742339503257,-208.79234219,0.00036712,12]
[356364756,1742339503267,-500.0,0.00036712,12]
[356364757,1742339503276,-628.87,0.00036712,12]
[356364758,1742339503285,-500.0,0.00036712,12]
[356364759,1742339503295,-1022.31,0.00036712,12]
[356364760,1742339503304,-500.0,0.00036712,12]
[356364761,1742339503315,-500.0,0.00036712,12]
[356364762,1742339503324,-664.59,0.00036712,12]
[356364763,1742339503335,-492.18973525,0.00036712,12]
[356364764,1742339503344,-500.0,0.00036712,12]
[356364765,1742339503353,-970.21,0.00036712,12]
[356364766,1742339503363,-605.69,0.00036712,12]
[356364767,1742339503373,-1253.42,0.00036712,12]
[356364768,1742339503383,-1388.92,0.00036712,12]
[356364769,1742339503396,-500.0,0.00036712,12]
[356364770,1742339503406,-500.0,0.00036712,12]
[356364771,1742339503416,-500.0,0.00036712,12]
[356364772,1742339503425,-500.0,0.00036712,12]
[356364773,1742339503435,-500.0,0.00036712,12]
[356364774,1742339503444,-500.0,0.00036712,12]
[356364775,1742339503454,-1024.33,0.00036712,12]
[356364776,1742339503464,-500.0,0.00036712,12]
[356364777,1742339503474,-603.22,0.00036712,12]
[356364778,1742339503483,-747.21,0.00036712,12]
[356364779,1742339503492,-500.0,0.00036712,12]
[356364780,1742339503502,-500.0,0.00036712,12]
[356364781,1742339503511,-500.0,0.00036712,12]
[356364782,1742339503521,-500.0,0.00036712,12]
[356364783,1742339503530,-1242.02,0.00036712,12]
[356364784,1742339503540,-500.0,0.00036712,12]
[356364785,1742339503550,-843.17,0.00036712,12]
[356364786,1742339503561,-500.0,0.00036712,12]
[356364787,1742339503573,-535.11,0.00036712,12]
[356364788,1742339503583,-532.91,0.00036712,12]
[356364789,1742339503594,-500.0,0.00036712,12]
[356364790,1742339503605,-500.0,0.00036712,12]
[356364791,1742339503615,-536.51,0.00036712,7]
[356364792,1742339503625,-864.22,0.00036712,12]
[356364793,1742339503635,-500.0,0.00036712,12]
[356364794,1742339503646,-500.0,0.00036712,12]
[356364795,1742339503656,-500.0,0.00036712,12]
[356364796,1742339503666,-500.0,0.00036712,12]
[356364797,1742339503676,-300.0,0.00036712,2]
[356364798,1742339503686,-540.93639435,0.00036712,12]
[356364799,1742339503696,-500.0,0.00036712,12]
[356364800,1742339503707,-838.26,0.00036712,12]
[356364801,1742339503717,-500.0,0.00036712,12]
[356364802,1742339503727,-500.0,0.00036712,12]
[356364803,1742339503738,-1425.59,0.00036712,12]
[356364804,1742339503749,-500.0,0.00036712,12]
[356364805,1742339503759,-500.0,0.00036712,12]
[356364806,1742339503768,-500.0,0.00036712,12]
[356364807,1742339503779,-1035.77,0.00036712,12]
[356364808,1742339503791,-522.87901737,0.00036712,12]
[356364809,1742339503801,-1119.9,0.00036712,12]
[356364810,1742339503810,-500.0,0.00036712,12]
[356364811,1742339503820,-500.0,0.00036712,12]
[356364812,1742339503831,-500.0,0.00036712,12]
[356364813,1742339503840,-940.64,0.00036712,12]
[356364814,1742339503849,-500.0,0.00036712,12]
[356364815,1742339503860,-500.0,0.00036712,12]
[356364816,1742339503871,-500.0,0.00036712,12]
[356364817,1742339503880,-757.19,0.00036712,12]
[356364818,1742339503891,-500.0,0.00036712,12]
[356364819,1742339503901,-500.0,0.00036712,12]
[356364820,1742339503911,-500.0,0.00036712,12]
[356364821,1742339503920,-1602.15,0.00036712,12]
[356364822,1742339503930,-368.23732997,0.00036712,12]
[356364823,1742339503940,-1002.8,0.00036712,12]
[356364824,1742339503950,-1198.43,0.00036712,12]
[356364825,1742339503959,-1331.13,0.00036712,12]
[356364826,1742339503969,-500.0,0.00036712,12]
[356364827,1742339503979,-500.0,0.00036712,12]
[356364828,1742339503990,-500.0,0.00036712,12]
[356364829,1742339504000,-649.81,0.00036712,12]
[356364830,1742339504010,-500.0,0.00036712,12]
[356364831,1742339504020,-500.0,0.00036712,12]
[356364832,1742339504029,-999.15,0.00036712,12]
[356364833,1742339504040,-2598.97,0.00036712,12]
[356364834,1742339504050,-500.0,0.00036712,12]
[356364835,1742339504060,-3644.21,0.00036712,12]
[356364836,1742339504070,-500.0,0.00036712,12]
[356364837,1742339504080,-500.0,0.00036712,12]
[356364838,1742339504089,-500.0,0.00036712,12]
[356364839,1742339504100,-500.0,0.00036712,12]
[356364840,1742339504110,-1387.99,0.00036712,12]
[356364841,1742339504120,-843.24,0.00036712,12]
[356364842,1742339504130,-500.0,0.00036712,12]
[356364843,1742339504142,-2465.62,0.00036712,12]
[356364844,1742339504152,-975.0,0.00036712,12]
[356364845,1742339504162,-609.77,0.00036712,12]
[356364846,1742339504172,-974.58,0.00036712,12]
[356364847,1742339504183,-1078.91,0.00036712,12]
[356364848,1742339504192,-500.0,0.00036712,12]
[356364849,1742339504203,-500.0,0.00036712,12]
[356364850,1742339504212,-2236.78,0.00036712,12]
[356364851,1742339504222,-1919.16,0.00036712,12]
[356364852,1742339504232,-2066.04,0.00036712,12]
[356364853,1742339504242,-1744.56,0.00036712,12]
[356364854,1742339504251,-625.60584855,0.00036712,12]
[356364855,1742339504262,-924.09,0.00036712,12]
[356364856,1742339504272,-231.35062277,0.00036712,12]
[356364857,1742339504282,-965.89,0.00036712,12]
[356364858,1742339504293,-500.0,0.00036712,12]
[356364859,1742339504303,-630.53,0.00036712,12]
[356364860,1742339504313,-2170.13,0.00036712,7]
[356364861,1742339504323,-500.0,0.00036712,12]
[356364862,1742339504333,-500.0,0.00036712,12]
[356364863,1742339504343,-500.0,0.00036712,12]
[356364864,1742339504353,-4236.85,0.00036712,12]
[356364865,1742339504363,-500.0,0.00036712,12]
[356364866,1742339504374,-500.0,0.00036712,12]
[356364867,1742339504384,-701.55,0.00036712,12]
[356364868,1742339504396,-940.24,0.00036712,12]
[356364869,1742339504406,-2071.16,0.00036712,12]
[356364870,1742339504417,-2364.63,0.00036712,12]
[356364871,1742339504429,-1084.3,0.00036712,12]
[356364872,1742339504441,-833.55,0.00036712,12]
[356364873,1742339504451,-1166.33,0.00036712,12]
[356364874,1742339504461,-500.0,0.00036712,12]
[356364875,1742339504471,-500.0,0.00036712,12]
[356364876,1742339504482,-500.0,0.00036712,12]
[356364877,1742339504492,-1018.16,0.00036712,12]
[356364878,1742339504502,-500.0,0.00036712,12]
[356364879,1742339504512,-500.0,0.00036712,12]
[356364880,1742339504522,-3791.02,0.00036712,12]
[356364881,1742339504533,-722.87,0.00036712,12]
[356364882,1742339504543,-591.18,0.00036712,12]
[356364883,1742339504553,-627.35,0.00036712,12]
[356364884,1742339504564,-433.99,0.00036712,12]
[356364885,1742339504574,-2218.35,0.00036712,12]
[356364886,1742339504584,-500.0,0.00036712,12]
[356364887,1742339504595,-548.12064245,0.00036712,12]
[356364888,1742339504605,-500.0,0.00036712,12]
[356364889,1742339504615,-2207.71,0.00036712,12]
[356364890,1742339504626,-1038.13,0.00036712,12]
[356364891,1742339504637,-7286.97,0.00036712,2]
[356364892,1742339504651,-500.0,0.00036712,12]
[356364893,1742339504662,-500.0,0.00036712,12]
[356364894,1742339504673,-500.0,0.00036712,12]
[356364895,1742339504684,-4093.1,0.00036712,12]
[356364896,1742339504694,-662.54,0.00036712,12]